Cogmind - Beta 16 @@@ ROGUE MODE // 2025.11.26 @ 20:28:53 Player: Skysub Result: Self-destructed Performance ------------- Evolutions (4) 2000 Regions Visited (6) 1200 Robots Destroyed (0) 0 Value Destroyed (20) 20 Prototype IDs (3) 60 Alien Tech Used (0) 0 Bonus (1825) 1825 TOTAL SCORE: 5105 Bonus ------- Pacifist 1325 Entered DSFs 500 Cogmind --------- Core Integrity 625/850 Matter 177/300 Energy 66/100 System Corruption 0% Temperature Cool (3) Movement Flying (32) Location -6/Factory Parts ------- > --- POWER (2) -------- (None) > --- PROPULSION (5) --- Cooled VTOL Module > --- UTILITY (6) ------ Enhanced Optical Array Improved Signal Interpreter > --- WEAPON (2) ------- (None) > --- INVENTORY (5) ---- Light Ion Engine Transmission Jammer Improved Medium Armor Plating Rocket Launcher Chainsword Peak State ------------ > --- POWER ------------ (None) > --- PROPULSION ------- Cooled VTOL Module > --- UTILITY ---------- Enhanced Optical Array Improved Sensor Array Improved Signal Interpreter > --- WEAPON ----------- (None) > --- INVENTORY -------- Light Ion Engine Transmission Jammer Improved Medium Armor Plating Rocket Launcher Chainsword [Rating: 17] Favorites ----------- Power Light Ion Engine Engine Light Ion Engine Propulsion Flight Unit Hover Unit Improved Airjet Flight Unit Flight Unit Utility Improved Signal Interpreter Device Improved Sensor Array Processor Improved Signal Interpreter Hackware System Shield Weapon Improved Heavy Laser Energy Gun Improved Heavy Laser Launcher Rocket Launcher Slashing Weapon Chainsword Build | -11 -10 -9 -8 -7 -7 -6 ------- Run | Yrd Mat Mat Mat Fac DSF Fac Slots Evolved 8 | . . 2 2 2 . 2 Power 1 | . . . . 1 . . Propulsion 3 | . . 1 1 . . 1 Utility 4 | . . 1 1 1 . 1 Weapon . | . . . . . . . Parts Attached 14 | . 1 1 1 3 1 7 Power 1 | . . . . 1 . . Engine 1 | . . . . 1 . . Core . | . . . . . . . Reactor . | . . . . . . . Propulsion 4 | . 1 . . 1 . 2 Treads . | . . . . . . . Leg . | . . . . . . . Wheel . | . . . . . . . Hover 1 | . . . . . . 1 Flight 3 | . 1 . . 1 . 1 Utility 6 | . . . 1 1 1 3 Device 2 | . . . . 1 . 1 Storage . | . . . . . . . Processor 3 | . . . . . 1 2 Hackware 1 | . . . 1 . . . Protection . | . . . . . . . Artifact . | . . . . . . . Weapon 3 | . . 1 . . . 2 Energy Gun 1 | . . . . . . 1 Energy Cannon . | . . . . . . . Ballistic Gun . | . . . . . . . Ballistic Cannon . | . . . . . . . Launcher 1 | . . 1 . . . . Special Weapon . | . . . . . . . Impact Weapon . | . . . . . . . Slashing Weapon 1 | . . . . . . 1 Piercing Weapon . | . . . . . . . Special Melee Weapon . | . . . . . . . Unidentified Prototypes 3 | . . . . . . 3 Parts Lost 5 | . . 1 . . 1 3 Power . | . . . . . . . Propulsion 3 | . . 1 . . . 2 Utility 2 | . . . . . 1 1 Weapon . | . . . . . . . Highest Loss Streak 1 | . . 1 . . 1 1 To Critical Strikes . | . . . . . . . Average Backups 3 | 1 2 2 4 4 3 4 Power 1 | 1 2 2 2 2 1 . Propulsion . | . . . . . . . Utility . | . . . . . . 1 Weapon 1 | . . . 2 2 2 2 Tool/Special . | . . . . . . . Unused Backups 5 | . . . 1 . 1 3 Power 2 | . . . 1 . 1 . Propulsion . | . . . . . . . Utility 1 | . . . . . . 1 Weapon 2 | . . . . . . 2 Tool/Special . | . . . . . . . Average Slot Usage (%) 7 | . 3 4 1 14 10 13 Flight 2 | . 3 3 . 3 2 1 Device 1 | . . . . 1 2 3 Processor 1 | . . . . . . 4 Peak Build Rating 17 | . 1 2 4 9 9 17 Average Rating 3 | . . . 1 6 3 9 On Entrance 2 | . . . . 4 9 1 Avg Prop Armor Cover (%) . | . . . . . . . Naked Turns 174 | . 57 47 48 . 12 10 Heaviest Build 8 | . . 4 . 4 4 8 Greatest Support 9 | 3 4 4 3 4 4 9 Greatest Overweight (x) 2 | . . 1 . . . 2 Average Overweight (x) . | . . . . . . . Largest Inventory Capacity 5 | 5 5 5 5 5 5 5 Average Capacity 5 | 5 5 5 5 5 5 5 Most Carried 5 | 2 3 4 5 5 5 5 Average Carried 3 | 1 2 2 4 3 4 4 Final Capacity 5 | 5 5 5 5 5 5 5 Final Carried 5 | 2 3 4 5 3 5 5 Class Distribution -------------------- 90% | Mutant 9% | Sprinter Dominant Class ---------------- Mutant | -10/Materials Mutant | -9/Materials Mutant | -8/Materials Mutant | -7/Factory Mutant | -7/DSF Mutant | -6/Factory Resources | -11 -10 -9 -8 -7 -7 -6 ----------- Run | Yrd Mat Mat Mat Fac DSF Fac Matter Collected 213 | 199 . . 14 . . . Remotely . | . . . . . . . Salvage Created . | . . . . . . . Parts . | . . . . . . . Haulers Intercepted . | . . . . . . . Recyclers Shooed 1 | . . . . . . 1 Parts Field Recycled . | . . . . . . . Retrieved Matter . | . . . . . . . Parts Self-Destructed . | . . . . . . . Prevented . | . . . . . . . Parts Restored . | . . . . . . . Kills | -11 -10 -9 -8 -7 -7 -6 ------- Run | Yrd Mat Mat Mat Fac DSF Fac Combat Hostiles Destroyed . | . . . . . . . Classes Destroyed . | . . . . . . . Best Kill Streak . | . . . . . . . Combat Bots Only . | . . . . . . . Max Kills in Single Turn . | . . . . . . . Gunslinging . | . . . . . . . Exploded . | . . . . . . . Melee . | . . . . . . . Uniques/NPCs Destroyed . | . . . . . . . Combat | -11 -10 -9 -8 -7 -7 -6 -------- Run | Yrd Mat Mat Mat Fac DSF Fac Hostile Shots Fired 187 | . 29 36 50 . 12 60 Missed 84 | . 12 13 25 . 8 26 Hits 103 | . 17 23 25 . 4 34 Melee 2 | . . . . . 2 . Projectile 101 | . 17 23 25 . 2 34 AOE 2 | . . . . . 2 . Critical Strikes 5 | . 1 1 1 . 2 . Damage Taken 1343 | . 140 334 299 . 150 420 Core 1113 | . 140 309 299 . 140 225 Absorbed by Shields . | . . . . . . . Core Remaining (%) 58 | 100 44 22 45 . 80 . Volleys Fired 1 | . . 1 . . . . Largest 1 | . . 1 . . . . Hottest 33 | . . 33 . . . . Shots Fired 1 | . . 1 . . . . Gun . | . . . . . . . Cannon . | . . . . . . . Launcher 1 | . . 1 . . . . Special . | . . . . . . . Kinetic . | . . . . . . . Thermal . | . . . . . . . Explosive 1 | . . 1 . . . . Electromagnetic . | . . . . . . . Robot Hit Streak . | . . . . . . . Robot Miss Streak . | . . . . . . . Penetration Max . | . . . . . . . Secondary Targets . | . . . . . . . Shots Hit Robots 1 | . . . . . . 1 Core Hits 3 | . . 1 1 . . 1 Critical Kills . | . . . . . . . Critical Parts Destroyed . | . . . . . . . Critical Strikes . | . . . . . . . Melee Attacks 2 | . . . . . . 2 Impact . | . . . . . . . Slashing 2 | . . . . . . 2 Piercing . | . . . . . . . Sneak Attacks 1 | . . . . . . 1 Combat Hostiles . | . . . . . . . Follow-up Attacks . | . . . . . . . Damage Inflicted 99 | . . 25 2 . . 72 Guns . | . . . . . . . Cannons . | . . . . . . . Explosions . | . . . . . . . Melee 70 | . . . . . . 70 Ramming 29 | . . 25 2 . . 2 Kinetic . | . . . . . . . Thermal . | . . . . . . . Explosive . | . . . . . . . Electromagnetic . | . . . . . . . Impact . | . . . . . . . Slashing 70 | . . . . . . 70 Piercing . | . . . . . . . Highest Corruption 2 | . . 2 . . 2 . Average Corruption 2 | . . 2 . . 2 . Corruption Purged . | . . . . . . . Corruption Blocked . | . . . . . . . Overload Shots . | . . . . . . . Overflow Damage 40 | . . . . . . 40 Projectiles . | . . . . . . . Explosions . | . . . . . . . Melee 40 | . . . . . . 40 Knockbacks 2 | . . 2 . . . . Impact 2 | . . 2 . . . . Kinetic . | . . . . . . . Secondary . | . . . . . . . Self-Inflicted Damage 12 | . . 11 1 . . . Shots . | . . . . . . . Rammed 9 | . . 5 2 . . 2 Targets Rammed 9 | . . 5 2 . . 2 Kicked . | . . . . . . . Crushed . | . . . . . . . Highest Temperature 5 | . . . 5 . . . Average Temperature 5 | . . . 5 . . . Received Heat Transfer 438 | . 18 141 153 . . 126 Siege Activations . | . . . . . . . Martial Activations . | . . . . . . . Shielding Activations . | . . . . . . . Robots Disrupted . | . . . . . . . Combat Hostiles . | . . . . . . . Robots Corrupted . | . . . . . . . Combat Hostiles . | . . . . . . . Parts Fried . | . . . . . . . Impact Corruptions . | . . . . . . . Robots Melted . | . . . . . . . Combat Hostiles . | . . . . . . . Parts Melted . | . . . . . . . Heat Transferred . | . . . . . . . Parts Sabotaged . | . . . . . . . Parts Stolen . | . . . . . . . Parts Stripped . | . . . . . . . Power Chain Reactions . | . . . . . . . Alert | -11 -10 -9 -8 -7 -7 -6 ------- Run | Yrd Mat Mat Mat Fac DSF Fac Maximum Alert Level . | . . . . . . . Low Security (%) 100 | 100 100 100 100 100 100 100 Level 1 . | . . . . . . . Level 2 . | . . . . . . . Level 3 . | . . . . . . . Level 4 . | . . . . . . . Level 5 . | . . . . . . . High Security . | . . . . . . . Max Security . | . . . . . . . Peak Influence 97 | . 14 14 1 . 3 97 Initial 3 | . . 1 1 . 3 . Average 11 | . 4 4 . . 1 28 Influence Increases 206 | . 14 29 8 5 . 150 Successful Hack 62 | . 14 5 8 5 . 30 Disable Machine 30 | . . 15 . . . 15 Destroy Structure 9 | . . 9 . . . . Lose Combat Pursuer 105 | . . . . . . 105 Influence Decreases 110 | . 10 29 12 . 5 54 Entered New Map 8 | . . 3 3 . 2 . Time Decay 79 | . 10 26 9 . . 34 Lost Part 23 | . . . . . 3 20 Squads Dispatched 11 | . 3 2 2 . 1 3 Investigation 9 | . 3 2 1 . . 3 Extermination . | . . . . . . . Reinforcement 2 | . . . 1 . 1 . Assault . | . . . . . . . Garrison . | . . . . . . . Intercept . | . . . . . . . Searches Triggered . | . . . . . . . Construction Impeded . | . . . . . . . Haulers Reinforced . | . . . . . . . Active Scanning Responses . | . . . . . . . Cargo Convoy Interrupts . | . . . . . . . Stealth | -11 -10 -9 -8 -7 -7 -6 --------- Run | Yrd Mat Mat Mat Fac DSF Fac Distress Signals 4 | . 1 3 . . . . Communications Jammed . | . . . . . . . Distress Signals . | . . . . . . . Times Spotted 46 | . 7 12 10 1 4 12 Peak Tracking Total 13 | . 9 13 9 1 4 7 Tactical Retreats 3 | . . . . . . 3 Traps | -11 -10 -9 -8 -7 -7 -6 ------- Run | Yrd Mat Mat Mat Fac DSF Fac Traps Triggered 1 | . 1 . . . . . Indirectly . | . . . . . . . Trap Hack Attempts . | . . . . . . . Triggered . | . . . . . . . Disarmed . | . . . . . . . Reprogrammed . | . . . . . . . Reused . | . . . . . . . Traps Extracted . | . . . . . . . Installed . | . . . . . . . Triggered . | . . . . . . . Machines | -11 -10 -9 -8 -7 -7 -6 ---------- Run | Yrd Mat Mat Mat Fac DSF Fac Machines Disabled 2 | . . 1 . . . 1 Max in Single Turn 1 | . . 1 . . . 1 Machines Repaired . | . . . . . . . Machines Dismantled . | . . . . . . . Machines Sabotaged . | . . . . . . . Overloaded Fab Kills . | . . . . . . . Hacking | -11 -10 -9 -8 -7 -7 -6 --------- Run | Yrd Mat Mat Mat Fac DSF Fac Machines Accessed 14 | . 4 3 2 1 . 4 Terminals 13 | . 4 3 2 1 . 3 Fabricators . | . . . . . . . Repair Stations . | . . . . . . . Recycling Units 1 | . . . . . . 1 Scanalyzers . | . . . . . . . Garrison Access . | . . . . . . . Total Hacks 42 | . 12 11 6 1 . 12 Successful 15 | . 2 4 3 1 . 5 Failed 27 | . 10 7 3 . . 7 Catastrophic 9 | . 3 2 2 . . 2 Database Lockouts . | . . . . . . . Manual 35 | . 11 11 6 . . 7 Terminals 39 | . 12 11 6 1 . 9 Fabricators . | . . . . . . . Repair Stations . | . . . . . . . Recycling Units 3 | . . . . . . 3 Scanalyzers . | . . . . . . . Garrison Access . | . . . . . . . Terminal Hacks 6 | . . 2 1 1 . 2 Open DSF 1 | . . . . 1 . . Level Access Points 3 | . . 1 1 . . 1 Branch Access Points 1 | . . 1 . . . . Zone Layout 1 | . . . . . . 1 Fabricator Hacks . | . . . . . . . Repair Station Hacks . | . . . . . . . Recycling Unit Hacks . | . . . . . . . Scanalyzer . | . . . . . . . Garrison Access Hacks . | . . . . . . . Unauthorized Hacks 9 | . 2 2 2 . . 3 Terminals 9 | . 2 2 2 . . 3 Botnet 9 | . 2 2 2 . . 3 Fabricators . | . . . . . . . Repair Stations . | . . . . . . . Recycling Units . | . . . . . . . Scanalyzers . | . . . . . . . Garrison Access . | . . . . . . . Data Cores Recovered . | . . . . . . . Used . | . . . . . . . Hacking Detections 13 | . 4 3 2 . . 4 Full Trace Events 11 | . 4 2 2 . . 3 Feedback Events . | . . . . . . . Feedback Blocked . | . . . . . . . Robot Schematics Acquired . | . . . . . . . Robots Built . | . . . . . . . Authchips . | . . . . . . . Time . | . . . . . . . Total Robot Build Rating . | . . . . . . . Part Schematics Acquired . | . . . . . . . Parts Built . | . . . . . . . Authchips . | . . . . . . . Time . | . . . . . . . Total Part Build Rating . | . . . . . . . Part Studies Acquired . | . . . . . . . Parts Repaired . | . . . . . . . Time . | . . . . . . . Parts Recycled . | . . . . . . . Recycled Matter . | . . . . . . . Retrieved Matter . | . . . . . . . Retrieved Components . | . . . . . . . Parts Scanalyzed . | . . . . . . . Part Schematics Acquired . | . . . . . . . Parts Damaged . | . . . . . . . Bothacking | -11 -10 -9 -8 -7 -7 -6 ------------ Run | Yrd Mat Mat Mat Fac DSF Fac Used RIF Installer . | . . . . . . . Robots Hacked . | . . . . . . . Non-combat . | . . . . . . . Combat . | . . . . . . . Robot Hacks Applied . | . . . . . . . Relay Couplers Released . | . . . . . . . Fabnet Peak Effective % . | . . . . . . . Robots Rewired . | . . . . . . . Allies Hacked . | . . . . . . . Hacks Repelled . | . . . . . . . Allies | -11 -10 -9 -8 -7 -7 -6 -------- Run | Yrd Mat Mat Mat Fac DSF Fac Total Allies . | . . . . . . . Largest Group . | . . . . . . . Highest-Rated Group . | . . . . . . . Highest-Rated Ally . | . . . . . . . Total Orders . | . . . . . . . Ally Attacks . | . . . . . . . Total Damage . | . . . . . . . Kills . | . . . . . . . Allies Corrupted . | . . . . . . . Allies Melted . | . . . . . . . Intel | -11 -10 -9 -8 -7 -7 -6 ------- Run | Yrd Mat Mat Mat Fac DSF Fac Active Infowar (turns) 79 | . . . . 8 5 66 Optics 23 | . . . . . . 23 Sensors 53 | . . . . . . 53 Jamming 14 | . . . . 8 5 1 Robot Analysis Total . | . . . . . . . Derelict Logs Recovered . | . . . . . . . Drone Launches . | . . . . . . . Drone Recoveries . | . . . . . . . Exploration | -11 -10 -9 -8 -7 -7 -6 ------------- Run | Yrd Mat Mat Mat Fac DSF Fac Turns Passed 405 | 16 73 81 56 24 20 135 Spaces Moved 760 | 27 149 152 100 50 35 247 Core 454 | 27 112 81 100 4 25 105 Treads . | . . . . . . . Legs . | . . . . . . . Wheels . | . . . . . . . Hover 39 | . . . . . . 39 Flight 267 | . 37 71 . 46 10 103 Fastest Speed 32 | 50 40 40 50 40 40 32 Average Speed 45 | 50 47 45 50 40 47 43 Slowest Speed 150 | 50 50 100 50 50 50 150 Overloaded Moves 70 | . . . . . . 70 Propulsion Burnouts . | . . . . . . . Robots Hopped 13 | . 3 8 . . . 2 Potential Cave-ins . | . . . . . . . Cave-ins Triggered . | . . . . . . . Exploration Rate (%) 19 | 3 45 18 15 2 42 11 Regions Visited 6 Branch Regions . Pre-discovered Areas . | . . . . . . . Known Exits Taken 3 | . . 1 1 1 . . Unknown Exits Taken 2 | 1 1 . . . . . Scrap Searched . | . . . . . . . Spaces Dug 9 | . . 9 . . . . Terrain Destroyed 9 | . . 9 . . . . Melee . | . . . . . . . Projectile . | . . . . . . . AOE 9 | . . 9 . . . . Terrain Rammed . | . . . . . . . Walls Destroyed . | . . . . . . . Machines Disabled . | . . . . . . . Actions | -11 -10 -9 -8 -7 -7 -6 --------- Run | Yrd Mat Mat Mat Fac DSF Fac Total 793 | 28 148 154 105 52 39 267 Wait 1 | . . . . . . 1 Move 731 | 26 143 137 99 49 34 243 Hop 10 | . 2 6 . . . 2 Pick Up 9 | 2 1 2 2 . . 2 Fast Attach 10 | . . . 1 1 1 7 Attach 8 | . 1 2 . 2 . 3 Detach 7 | . 1 1 . . 3 2 Swap . | . . . . . . . Drop 5 | . . . 1 . 1 3 Fire 1 | . . 1 . . . . Melee 2 | . . . . . . 2 Ram 9 | . . 5 2 . . 2 Kick . | . . . . . . . Crush . | . . . . . . . Escape Stasis . | . . . . . . . Rewire . | . . . . . . . Trap . | . . . . . . . Miscellaneous . | . . . . . . . Route ------- -11/Scrapyard -10/Materials (discovered 2 exits: *Mat / [*Min]) -9/Materials (discovered 7 exits: *Mat x3 / Min x2 / *Sto x2) -8/Materials (discovered 3 exits: *Fac x3) -7/Factory -7/DSF -6/Factory (discovered 4 exits: *Fac x4) History --------- Turn | Location | Event 10 | -11/Scrapyard | Discovered new exit (range 12) 17 | -11/Scrapyard | Entered Materials 55 | -10/Materials | Discovered new exit (range 8) 83 | -10/Materials | Discovered new exit (range 15) 90 | -10/Materials | Core integrity fell below 50% 90 | -10/Materials | Entered another Materials area 90 | -9/Materials | Evolved 2 slots: Propulsion x1, Utility x1 105 | -9/Materials | Discovered new exit (range 5) 120 | -9/Materials | Identified exit to Mines 120 | -9/Materials | Identified exit to Storage 139 | -9/Materials | Identified exit to Materials 161 | -9/Materials | Core integrity fell below 50% 171 | -9/Materials | Entered another Materials area 171 | -8/Materials | Evolved 2 slots: Propulsion x1, Utility x1 190 | -8/Materials | Identified exit to Factory 226 | -8/Materials | Core integrity fell below 50% 227 | -8/Materials | Entered Factory 227 | -7/Factory | Evolved 2 slots: Power x1, Utility x1 251 | -7/Factory | Identified exit to DSF 251 | -7/Factory | Entered DSF 262 | -7/DSF | Discovered new exit (range 15) 269 | -7/DSF | Additional patrols routed to DSF 271 | -7/DSF | Entered Factory 271 | -6/Factory | Evolved 2 slots: Propulsion x1, Utility x1 279 | -6/Factory | Discovered new exit (range 3) 364 | -6/Factory | Build established: Mutant 406 | -6/Factory | Identified exit to Factory 406 | -6/Factory | Self-destructed Last Messages --------------- Testing... Terminal linked with 1 system. Awaiting botnet instructions. 00386_ Connecting with Terminal... 00386_ ALERT: Suspicious activity at Terminal F011. Dispatching Investigation squad. 00394_ Imp. Sensor Array destroyed. 00406_ Connecting with Terminal... >>Trojan(Botnet) Trojan loaded successfully. Testing... Terminal linked with 2 systems. Awaiting botnet instructions. >>Access(Main) Found 4 level access points to Factory: (10,63) (30,167) (102,148) (182,44) Map updated. Map ----- +----------------------------------------------------+ | ?????????????????????????????????????????????????? | | ?????????????????????????????????????????????????? | | ?????????????????????????????????????????????????? | | ?????????????????????????????????????????????????? | | ?????????????????????????????????????????????????? | | ?????????????????????????????????????????????????? | | ?????????????????????????????????????????????????? | | ?????????????????????????????????????????????????? | | ???????????????????####+####?????????????????????? | | ??????????????????? ?????????????????????? | | ???????????????????? ?????????????????????? | | ???????????????????? ?????????????????????? | | ????????????????????? ?????????????????????? | | ????????????????????? ?????????????????????? | | ?????????????????????# #?????????????????????? | | ?????????????????????# #?????????????????????? | | ?????????????????????# #?????????????????????? | | ?????????????????????# #?????????????????????? | | ?????????????????????# #?????????????????????? | | ?????????????????????# #?????????????????????? | | ???????????????????### ###???????????????????? | | ???????????????????# #???????????????????? | | ???????????????????# #???????????????????? | | ???????????????????# #???????????????????? | | ????????????#+###### #???????????????????? | | ????????????# k T@ k +???????????????????? | | ??????????????###### #???????????????????? | | ???????????????????# #???????????????????? | | ???????????????????# #???????????????????? | | ???????????????????# #???????????????????? | | ???????????????????## ##???????????????????? | | ????????????????????# #???????????#+#??????? | | ????????????????????# #???????????# #??????? | | ????????????????????# k #???????????# #??????? | | ????????????????????# R #???????????# #??????? | | ????????????????????# #???????????# #??????? | | ????????????????????# #???????????# #??????? | | ????????????????????#k #???????????# #??????? | | ????????????????????# #???????????# #??????? | | ????????????????????# #???????????# ######## | | ????????????????????# s############# | | ????????????????????# | | ????????????????????# ############# | | ????????????????????# #???????????# "" "" | | ????????????????????# #???????????# "" "" | | ????????????????????# #???????????# """ "" | | ????????????????????# #???????????# """ "" | | ????????????????????# #???????????# """ "" | | ????????????????????# #???????????# | | ????????????????????# #???????????# | +----------------------------------------------------+ Best States ------------- Heat Dissipation 37 Energy Generation 10 Energy Capacity 125 Matter Stores 299 Matter Capacity 300 Sight Range 22 Robot Scan Range 15 Terrain Scan Density 10 Jamming Range 12 Evasion (%) 63 Defensive Hacking 10 Item Schematics ----------------- None Robot Schematics ------------------ None Fabricated ------------ Nothing Repaired ---------- Nothing Studied --------- None Alien Tech Used ----------------- None Achievements -------------- None Challenges ------------ None Game ------ Seed GodShieldStick Manual? 0 Play Time 00:11:59 Cumulative 289.9 hours Start 2025.11.26 @ 20:19:56 End 2025.11.26 @ 20:28:53 Sessions 1 Manual Loads 0 Difficulty Rogue Special Mode None Game No. 333 Rogue 333 Adventurer 0 Explorer 0 Win Type - Total 18 Types 11/0/3/1/1/0/0/1/0/1 Lore% 77 Gallery% 75 Achievement% 57 Wizard Run 0 Options --------- Layout 1 ASCII 0 Keyboard 1 Movement Numpad Keybinds 0 Fullscreen 0 Font 32/SmallcapsGlow Map View 77x35 Zoom Use 0% Tactical HUD 1 Map Filters NONE Filters NONE Steam 1 RUN: 0c9fcb51-13e4-49cb-8bbc-beaecabdd92b